Workbook

Sheet Titre
G6: Objectif du labo Excel 3
G8: Utiliser Excel pour comparer deux moyennes à l'aide du test t de Student (signification statistique d'une différence) et de la mesure d'association Êta-carré (signification réelle d'une différence)

Sheet Test t (démo)
B2: Test t de la différence entre deux moyennes - Démonstration
B4: Question de recherche: Y a-t-il une relation entre le sexe et le temps passé devant la télévision? (Fox, p.214)
D6: Temps passé devant la TV | F6: Sexe
F7: Hommes | G7: Femmes
D8: Moyennes (heures) | F8: 2.75 | G8: 3.01
D9: Écart-type | F9: 2.03 | G9: 2.23
D10: Nombres de cas (n) | F10: 855 | G10: 1085
D31: Sexe
B32: Hommes (catégorie 1) | E32: Femmes (catégorie 2)
B33: X1= | C33: 2.75 | E33: X2= | F33: 3.01
B34: n1 = | C34: 855 | E34: n2 = | F34: 1085
B35: s1 = | C35: 2.03 | E35: s2 = | F35: 2.225
B45: 1. Formulons les hypothèses statistiques | H45: 4. Calculons sw2, la variance combinée des deux échantillons
H46: sw2 = | I46: (Sx12 + Sx22) / dl
B47: Hypothèse nulle: il n’y a pas de différence dans le nombre d’heures passées devant la TV chez les hommes et les femmes | H47: = | I47: (3523+5371)/1938
B48: H0 : m1 = m2 ou de façon équivalente H0 : m1 - m2 = 0 | H48: = | I48: =(C56+F56) / (C62+F62) -> 4.589678857
B50: Hypothèse alternative bilatérale: il y a une différence dans le nombre d’heures passées devant la TV chez les hommes et les femmes
B51: Ha : m1 ¹ m2
B53: 2. Multiplions chaque variance par la taille de l'échantillon (variance pondérée) | H53: 5. Calculons l'erreur type de la différence des moyennes sx1-x2
B54: Sx12 = | C54: s12 * n1 | E54: Sx22 = | F54: s22 * n2 | H54: sx1-x22 = | I54: sw2 * (1 / n1 + 1 / n2)
C55: (2,03)2 * 855 | F55: (2,225)2 * 1085 | H55: = | I55: =I48&" * (1/"&C34&" + 1/"&F34&")" -> 4.58967885706914 * (1/855 + 1/1085)
C56: =C35*C35*C34 -> 3523.3695 | F56: =F35*F35*F34 -> 5371.428125 | H56: = | I56: =I48 * (C34 + F34)/(C34*F34) -> 0.009598164209
H57: sx1-x2 = | I57: =I56^0.5 -> 0.09797022103 | J57: =" * (racine carrée de "&FIXED(I56,4)&")" -> * (racine carrée de 0.0096)
B58: 3. Calculons le nombre de degrés de libertés
D59: dl = | E59: n1 + n2 - 2
B60: dl1 = | C60: n1-1 | E60: dl2 = | F60: n2-1 | H60: 6. Calculons la valeur du t
B61: = | C61: =C34 &" - 1" -> 855 - 1 | E61: = | F61: =F34 &" - 1" -> 1085 - 1 | H61: t = | I61: (X1 - X2) / sx1-x2
B62: = | C62: =C34-1 -> 854 | E62: = | F62: =F34-1 -> 1084 | H62: = | I62: (2,75-3,01)/0,098
H63: = | I63: =(C33 - F33) / I57 -> -2.653867647
C64: dl = (dl1 + dl2) = | E64: =C62+F62 -> 1938 | H64: abs(t) = | I64: =ABS(I63) -> 2.653867647
B66: 7. Choisissons un seuil de signification et trouvons la valeur critique en prenant en compte les degrés de liberté déjà calculés
C68: degrés de libertés (dl1 + dl2) | D68: =E64 -> 1938 | G68: a = | H68: 0.05 | K68: valeur critique : | L68: 1.96
B70: 8. Énonçons la règle de décision et représentons graphiquement la décision à l'aide de la distribution d'échantillonnage du t
B72: Rejet de H0 si tcalculé > tcritique
B92: 9. Prenons une décision quant au rejet ou non de l'hypothèse nulle et concluons
B94: La valeur absolue du t calculé (2,65) étant supérieure à la valeur critique (1,96), nous rejetons l'hypothèse nulle, à l'effet qu'il n'y a pas de différence entre les deux groupes. Autrement dit, l'écart symbolisé par la valeur 2,65 est suffisamment significatif pour qu'on accepte plutôt l'hypothèse alternative.
B96: On peut conclure à l'existence d'une relation entre le sexe et le temps passé devant la TV dans la population de laquelle est tiré l'échantillon. Plus précisément, il y a une différence entre les hommes et les femmes quant au nombre d'heures quotidiennes utilisées pour regarder la TV. On est sûr au moins à 95% que cette différence est statistiquement significative.
B98: Ëta-carré et taille de l'effet- Démonstration
C102: 2,65*2,65/(2,65*2,65)+1938
C104: =(2.65*2.65)/((2.65*2.65)+1938) -> 0.003610498079
B106: Interprétation: D'après la règle de Cohen (1988) ci-dessous, la valeur de l'êta-carré indique la présence d'effet de petite taille du sexe sur le nombre d'heures passées devant la TV. Autrement dit, la différence entre les hommes et les femmes quant au nombre d'heures passées devant la TV est faible.

Sheet Test t (ex)
B2: Test t de la différence entre deux moyennes - Exercice
B4: Question de recherche: Y a-t-il une relation entre le groupe d'appartenance et le quotient intellectuel (QI)?
D6: Groupe | H6: 0. Sortons le diagramme des moyennes
B7: Groupe 1 | E7: Groupe 2
B8: X1= | C8: 108.1 | E8: X2= | F8: 98.4
B9: n1 = | C9: 100 | E9: n2 = | F9: 100
B10: s12 = | C10: 289 | E10: s22 = | F10: 196
B12: Temps passé devant la TV | D12: Sexe
D13: Groupe 1 | E13: Groupe 2
B14: Moyennes (heures) | D14: 108.1 | E14: 98.4
B15: Écart-type | D15: =SQRT(C10) -> 17 | E15: =SQRT(F10) -> 14
B16: Nombres de cas (n) | D16: 100 | E16: 100
B18: Différence entre les deux moyennes observées:
B20: 1. Formulons les hypothèses statistiques | H20: 4. Calculer sw2, la variance combinée des deux échantillons
B21: Hypothèse nulle | D21: H0 : m1 = m2 ou H0 : m1 - m2 = 0 | H21: sw2 = | I21: (Sx12 + Sx22) / dl
H22: =
H23: =
B25: Hypothèse alternative bilatérale | E25: Ha : m1 ¹ m2
B28: 2. Multiplier chaque variance par la taille de l'échantillon (pondérée) | H28: 5. Calculer l'erreur type de la différence des moyennes sx1-x2
B29: Sx12 = | C29: s12 * n1 | E29: Sx22 = | F29: s22 * n2 | H29: sx1-x22 = | I29: sw2 * (1 / n1 + 1 / n2)
H31: sx1-x22 =
B33: 3. Calculer le nombre de degrés de libertés | H33: sx1-x2 = | J33: Racine carrée
D34: dl = | E34: n1 + n2 - 2
B35: dl1 = | C35: n1-1 | E35: dl2 = | F35: n2-1 | H35: 6. Calculer la valeur du t
B36: = | E36: = | H36: t = | I36: (X1 - X2) / sx1-x2
C38: dl = (dl1 + dl2) = | H38: abs(t) =
B40: 7. Choisissons un seuil de signification 0,05 et trouver la valeur critique en prenant en compte les degrés de liberté déjà calculés
C42: degrés de libertés | G42: a = | H42: 0.05 | K42: valeur critique :
B44: 8. Énonçons la règle de décision et représenter graphiquement la décision à l'aide la distribution d'échantillonnage du t
B46: Rejet de H0 si tcalculé > tcritique
B66: 9. Prendre une décision quant au rejet ou non de l'hypothèse nulle et conclure
B73: Calculer la taille de l'effet du groupe sur le QI, si nécessaire
D76: t 2 =

Sheet Bil.-uni. (décision)
B2: Test t bilatéral et unilatéral (Décision)
B4: En vous basant sur la table statistique, trouvez la valeur critique du t et comparer-la à la valeur calculée pour prendre une décision d'acceptation (A) ou de rejet (R) de l'hypothèse nulle, selon la nature du test.
B6: Test | C6: tcalculé | D6: Seuil de signification | E6: Dl | G6: tcritique ? | H6: Décision A ou R de H0?
B7: Bilatéral | C7: 2.4 | D7: 0.05 | F7: 5
B8: Unilatéral | C8: 2.4 | D8: 0.05 | F8: 5
B10: Que constatez-vous à propos de la différence entre un test bilatéral et un test unilatéral?
B16: Test bilatéral | G16: Test unilatéral
B37: H0 : m1 = m2 ou de façon équivalente H0 : m1 - m2 = 0 | F37: H0 : m1 = m2
B39: Ha : m1 ¹ m2 | F39: Ha : m1 > m2

Sheet Test t (automatisé)
B2: Test t de la différence entre deux moyennes (utilitaire d'analyse)
B4: Question de recherche: Y a-t-il une relation entre l'absentéisme des étudiants et la performance à l'examen?
C7: Absentéisme | G7: Test d'égalité des espérances: deux observations de variances égales
B8: Réguliers | D8: Irréguliers
B9: 89 | D9: 70 | H9: Réguliers | I9: Irréguliers
B10: 97 | D10: 64 | G10: Moyenne | H10: 86.3 | I10: 72.7
B11: 98 | D11: 95 | G11: Variance | H11: 159.7888889 | I11: 156.2333333
B12: 79 | D12: 67 | G12: Observations | H12: 10 | I12: 10
B13: 95 | D13: 59 | G13: Variance pondérée | H13: 158.0111111
B14: 68 | D14: 89 | G14: Différence hypothétique des moyennes | H14: 0
B15: 97 | D15: 79 | G15: Degré de liberté | H15: 18
B16: 65 | D16: 80 | G16: Statistique t | H16: 2.419246364
B17: 79 | D17: 59
B18: 96 | D18: 65 | G18: Valeur critique de t (unilatéral) | H18: 1.734063607
G20: Valeur critique de t (bilatéral) | H20: 2.10092204
B22: 1. Analysez brièvement la différence entre les moyennes
B26: 2. Formulez les hypothèse nulle et alternative pour un test bilatéral
B28: H0 : | C28: m1 = m2
B30: Ha : | C30: m1 ¹ m2
B32: 3. Prenez une décision au seuil de signification 0,05 et concluez
B34: a. Prenez une décision quant au rejet ou non de l'hypothèse nulle
B36: En comparant les valeurs du t calculé et du t critique
B40: En comparant les valeurs de la probabilité calculée et du seuil de signification critique 0,05
B44: b. Concluez sur la signification statistique de la relation étudiée
B48: c. Voici la représentation graphique de la décision pour le test bilatéral
B69: 4. Quelle est la signification réelle de la relation entre l'absentéisme et la performance?
F71: Interprétez la valeur de l'êta-carré en termes d'effet de taille
B74: Eta-carré | E74: Calcul
E75: Résultat

Sheet Test t (Ex compl.)
B2: Test t de la différence entre deux moyennes (exercice complémentaire)
B4: Comparativement aux gars, les filles passent-elles plus de temps sur Internet chez les étudiants de L2 sociologie?
C6: Sexe | G6: 1. Sortez le test d'égalité des espérances (utilitaire d'analyse)
C7: Filles | D7: Gars
C8: 4 | D8: 8
C9: 4 | D9: 3
C10: 6 | D10: 4
C11: 8 | D11: 5
C12: 18 | D12: 5
C13: 8 | D13: 4
C14: 18 | D14: 3
C15: 24 | D15: 2
C16: 17 | D16: 4
B17: Temps sur | C17: 6 | D17: 6
B18: Internet/jour | C18: 19 | D18: 6
C19: 3 | D19: 5
C20: 8 | D20: 4
C21: 3 | D21: 10
C22: 6 | D22: 5
C23: 5 | D23: 2
C24: 7 | D24: 3
C25: 8 | D25: 1
C26: 0 | D26: 4
C27: 20 | D27: 2
B29: Source: Sondage auprès des étudiants de sociologie L2 (2021)
B31: 2. Analysez brièvement la différence entre les moyennes
B35: 3. Formulez les hypothèses statistiques pour un test unilatéral
B37: H0 : | C37: m1 = m2
B39: Ha : | C39: m1 > m2
B41: 4. Prenez une décision au seuil de signification 0,05, concluez et représentez graphiquement la décison
B43: b. Prenez une décision quant au rejet ou non de l'hypothèse nulle
B45: En comparant les valeurs du t calculé et du t critique
B49: En comparant les valeurs du seuil de signification calculé et du seuil de signification critique 0,05
B53: c. Concluez sur la signification statistique de la relation étudiée
B57: d. Représentez graphiquement la décision pour un test unilatéral
B79: 5. Quelle est la signification réelle de la relation entre le sexe et le revenu annuel chez les Canadiens?
G81: Interprétez la valeur de l'êta-carré en termes d'effet de taille
B84: Eta-carré = | E84: Calcul
E85: Résultat

Sheet Table t
B2: Distribution du t de Student (table statistique)
D11: Probabilité (seuil de signification pour un test unilatéral a)
D12: 0.1 | E12: 0.05 | F12: 0.025 | H12: 0.01 | J12: 0.005 | L12: 0.0005
D13: Probabilité (seuil de signification pour un test bilatéral a)
B14: dl | D14: 0.2 | E14: 0.1 | F14: 0.05 | H14: 0.02 | J14: 0.01 | L14: 0.001
B16: 1 | D16: =_xlfn.T.INV.2T(0.2,B16) -> 3.077683537 | E16: =_xlfn.T.INV.2T(0.1,B16) -> 6.313751515 | F16: =_xlfn.T.INV.2T(0.05,B16) -> 12.70620474 | H16: =_xlfn.T.INV.2T(0.02,B16) -> 31.82051595 | J16: =_xlfn.T.INV.2T(0.01,B16) -> 63.65674116 | L16: =_xlfn.T.INV.2T(0.001,B16) -> 636.6192488
B17: 2 | D17: =_xlfn.T.INV.2T(0.2,B17) -> 1.885618083 | E17: =_xlfn.T.INV.2T(0.1,B17) -> 2.91998558 | F17: =_xlfn.T.INV.2T(0.05,B17) -> 4.30265273 | H17: =_xlfn.T.INV.2T(0.02,B17) -> 6.964556734 | J17: =_xlfn.T.INV.2T(0.01,B17) -> 9.924843201 | L17: =_xlfn.T.INV.2T(0.001,B17) -> 31.59905458
B18: 3 | D18: 1.637744354 | E18: 2.353363435 | F18: 3.182446305 | H18: 4.540702859 | J18: 5.84090931 | L18: 12.92397864 | O18: a = | Q18: 0.05
B19: 4 | D19: 1.533206274 | E19: 2.131846786 | F19: 2.776445105 | H19: 3.746947388 | J19: 4.604094871 | L19: 8.610301581 | O19: dl =
B20: 5 | D20: 1.475884049 | E20: 2.015048373 | F20: 2.570581836 | H20: 3.364929999 | J20: 4.032142984 | L20: 6.868826626 | O20: t critique (Bil)= | Q20: =_xlfn.T.INV.2T(Q18,Q19) -> 
B22: 6 | D22: 1.439755747 | E22: 1.943180281 | F22: 2.446911851 | H22: 3.142668403 | J22: 3.707428021 | L22: 5.958816179
B23: 7 | D23: 1.414923928 | E23: 1.894578605 | F23: 2.364624252 | H23: 2.997951567 | J23: 3.499483297 | L23: 5.407882521
B24: 8 | D24: 1.39681531 | E24: 1.859548038 | F24: 2.306004135 | H24: 2.896459448 | J24: 3.355387331 | L24: 5.041305433
B25: 9 | D25: 1.383028738 | E25: 1.833112933 | F25: 2.262157163 | H25: 2.821437925 | J25: 3.249835542 | L25: 4.780912586
B26: 10 | D26: 1.372183641 | E26: 1.812461123 | F26: 2.228138852 | H26: 2.763769458 | J26: 3.169272673 | L26: 4.586893859
B28: 11 | D28: 1.363430318 | E28: 1.795884819 | F28: 2.20098516 | H28: 2.718079184 | J28: 3.105806516 | L28: 4.436979338
B29: 12 | D29: 1.356217334 | E29: 1.782287556 | F29: 2.17881283 | H29: 2.680997993 | J29: 3.054539589 | L29: 4.317791284
B30: 13 | D30: 1.350171289 | E30: 1.770933396 | F30: 2.160368656 | H30: 2.650308838 | J30: 3.012275839 | L30: 4.220831728
B31: 14 | D31: 1.345030374 | E31: 1.761310136 | F31: 2.144786688 | H31: 2.624494068 | J31: 2.976842734 | L31: 4.140454113
B32: 15 | D32: 1.340605608 | E32: 1.753050356 | F32: 2.131449546 | H32: 2.602480295 | J32: 2.946712883 | L32: 4.072765196
B34: 16 | D34: 1.336757167 | E34: 1.745883676 | F34: 2.119905299 | H34: 2.583487185 | J34: 2.920781622 | L34: 4.014996327
B35: 17 | D35: 1.33337939 | E35: 1.739606726 | F35: 2.109815578 | H35: 2.566933984 | J35: 2.89823052 | L35: 3.965126272
B36: 18 | D36: 1.330390944 | E36: 1.734063607 | F36: 2.10092204 | H36: 2.55237963 | J36: 2.878440473 | L36: 3.921645825
B37: 19 | D37: 1.327728209 | E37: 1.729132812 | F37: 2.093024054 | H37: 2.539483191 | J37: 2.860934606 | L37: 3.883405853
B38: 20 | D38: 1.325340707 | E38: 1.724718243 | F38: 2.085963447 | H38: 2.527977003 | J38: 2.84533971 | L38: 3.849516275
B40: 21 | D40: 1.323187874 | E40: 1.720742903 | F40: 2.079613845 | H40: 2.517648016 | J40: 2.831359558 | L40: 3.819277164
B41: 22 | D41: 1.321236742 | E41: 1.717144374 | F41: 2.073873068 | H41: 2.508324553 | J41: 2.818756061 | L41: 3.792130672
B42: 23 | D42: 1.31946024 | E42: 1.713871528 | F42: 2.06865761 | H42: 2.499866739 | J42: 2.807335684 | L42: 3.767626804
B43: 24 | D43: 1.317835934 | E43: 1.71088208 | F43: 2.063898562 | H43: 2.492159473 | J43: 2.796939505 | L43: 3.745398619
B44: 25 | D44: 1.316345073 | E44: 1.708140761 | F44: 2.059538553 | H44: 2.485107175 | J44: 2.787435814 | L44: 3.72514395
B46: 26 | D46: 1.314971864 | E46: 1.70561792 | F46: 2.055529439 | H46: 2.478629824 | J46: 2.778714533 | L46: 3.706611743
B47: 27 | D47: 1.313702913 | E47: 1.703288446 | F47: 2.051830516 | H47: 2.472659912 | J47: 2.770682957 | L47: 3.689591713
B48: 28 | D48: 1.312526782 | E48: 1.701130934 | F48: 2.048407142 | H48: 2.467140098 | J48: 2.763262455 | L48: 3.673906401
B49: 29 | D49: 1.311433647 | E49: 1.699127027 | F49: 2.045229642 | H49: 2.46202136 | J49: 2.756385904 | L49: 3.659405019
B50: 30 | D50: 1.310415025 | E50: 1.697260887 | F50: 2.042272456 | H50: 2.457261542 | J50: 2.749995654 | L50: 3.645958635
B52: 31 | D52: 1.309463549 | E52: 1.695518783 | F52: 2.039513446 | H52: 2.452824193 | J52: 2.744041919 | L52: 3.63345635
B53: 32 | D53: =_xlfn.T.INV.2T(0.2,B53) -> 1.308572793 | E53: 1.693888748 | F53: 2.036933343 | H53: 2.448677634 | J53: 2.738481482 | L53: 3.62180226
B54: 33 | D54: 1.307737124 | E54: 1.692360309 | F54: 2.034515297 | H54: 2.4447942 | J54: 2.733276642 | L54: 3.610913008
B55: 34 | D55: 1.306951587 | E55: 1.690924255 | F55: 2.032244509 | H55: 2.441149628 | J55: 2.728394367 | L55: 3.600715797
B56: 35 | D56: 1.306211802 | E56: 1.689572458 | F56: 2.030107928 | H56: 2.437722547 | J56: 2.723805589 | L56: 3.591146776
B58: 36 | D58: 1.305513886 | E58: 1.688297714 | F58: 2.028094001 | H58: 2.434494061 | J58: 2.71948463 | L58: 3.582149701
B59: 37 | D59: 1.304854381 | E59: 1.68709362 | F59: 2.026192463 | H59: 2.4314474 | J59: 2.715408722 | L59: 3.573674844
B60: 38 | D60: 1.304230204 | E60: 1.68595446 | F60: 2.024394164 | H60: 2.428567631 | J60: 2.711557602 | L60: 3.565678072
B61: 39 | D61: 1.303638589 | E61: 1.684875122 | F61: 2.02269092 | H61: 2.42584141 | J61: 2.707913184 | L61: 3.558120081
B62: 40 | D62: 1.303077053 | E62: 1.683851013 | F62: 2.02107539 | H62: 2.423256779 | J62: 2.704459267 | L62: 3.550965761
B64: 41 | D64: 1.302543359 | E64: 1.682878002 | F64: 2.01954097 | H64: 2.420802992 | J64: 2.701181304 | L64: 3.544183643
B65: 42 | D65: 1.302035487 | E65: 1.681952357 | F65: 2.018081703 | H65: 2.41847036 | J65: 2.698066186 | L65: 3.537745445
B66: 43 | D66: 1.301551608 | E66: 1.681070703 | F66: 2.016692199 | H66: 2.416250129 | J66: 2.695102079 | L66: 3.531625678
B67: 44 | D67: 1.30109006 | E67: 1.680229977 | F67: 2.015367574 | H67: 2.414134368 | J67: 2.692278266 | L67: 3.525801306
B68: 45 | D68: 1.300649332 | E68: 1.679427393 | F68: 2.014103389 | H68: 2.412115876 | J68: 2.689585019 | L68: 3.520251465
B70: 46 | D70: =_xlfn.T.INV.2T(0.2,B70) -> 1.300228048 | E70: 1.678660414 | F70: 2.012895599 | H70: 2.410188096 | J70: 2.687013492 | L70: 3.514957205
B71: 47 | D71: 1.299824947 | E71: 1.677926722 | F71: 2.011740514 | H71: 2.40834505 | J71: 2.684555618 | L71: 3.509901283
B72: 48 | D72: 1.299438879 | E72: 1.677224196 | F72: 2.010634758 | H72: 2.406581273 | J72: 2.682204027 | L72: 3.50506797
B73: 49 | D73: 1.299068785 | E73: 1.676550893 | F73: 2.009575237 | H73: 2.40489176 | J73: 2.679951974 | L73: 3.500442891
B74: 50 | D74: 1.298713694 | E74: 1.675905025 | F74: 2.008559112 | H74: 2.403271917 | J74: 2.677793271 | L74: 3.496012882
B76: 51 | D76: 1.298372713 | E76: 1.67528495 | F76: 2.00758377 | H76: 2.401717523 | J76: 2.675722234 | L76: 3.491765864
B77: 52 | D77: 1.298045016 | E77: 1.674689154 | F77: 2.006646805 | H77: 2.400224691 | J77: 2.673733631 | L77: 3.487690735
B78: 53 | D78: 1.297729843 | E78: 1.674116237 | F78: 2.005745995 | H78: 2.398789836 | J78: 2.671822636 | L78: 3.483777273
B79: 54 | D79: 1.297426488 | E79: 1.673564906 | F79: 2.004879288 | H79: 2.397409645 | J79: 2.669984796 | L79: 3.480016051
B80: 55 | D80: 1.2971343 | E80: 1.673033965 | F80: 2.004044783 | H80: 2.396081053 | J80: 2.668215988 | L80: 3.476398359
B82: 56 | D82: =_xlfn.T.INV.2T(0.2,B82) -> 1.296852673 | E82: =_xlfn.T.INV.2T(0.1,B82) -> 1.672522303 | F82: =_xlfn.T.INV.2T(0.05,B82) -> 2.003240719 | H82: =_xlfn.T.INV.2T(0.02,B82) -> 2.394801219 | J82: =_xlfn.T.INV.2T(0.01,B82) -> 2.666512398 | L82: =_xlfn.T.INV.2T(0.001,B82) -> 3.47291614
B83: 57 | D83: 1.296581044 | E83: 1.672028888 | F83: 2.002465459 | H83: 2.39356751 | J83: 2.664870482 | L83: 3.469561928
B84: 58 | D84: 1.29631889 | E84: 1.671552762 | F84: 2.001717484 | H84: 2.392377475 | J84: 2.663286954 | L84: 3.466328795
B85: 59 | D85: =_xlfn.T.INV.2T(0.2,B85) -> 1.296065725 | E85: 1.671093032 | F85: 2.000995378 | H85: 2.391228837 | J85: 2.661758752 | L85: 3.463210305
B86: 60 | D86: =_xlfn.T.INV.2T(0.2,B86) -> 1.295821094 | E86: 1.670648865 | F86: 2.000297822 | H86: 2.390119473 | J86: 2.660283029 | L86: 3.460200469
B88: 70 | D88: 1.293762898 | E88: 1.666914479 | F88: 1.994437112 | H88: 2.380807482 | J88: 2.647904624 | L88: 3.435014521
B89: 80 | D89: 1.292223583 | E89: 1.664124579 | F89: 1.990063421 | H89: 2.373868273 | J89: 2.638690596 | L89: 3.416337458
B90: 90 | D90: 1.291028899 | E90: 1.661961084 | F90: 1.986674541 | H90: 2.368497476 | J90: 2.631565166 | L90: 3.401935307
B91: 100 | D91: 1.290074761 | E91: 1.660234326 | F91: 1.983971519 | H91: 2.364217366 | J91: 2.625890521 | L91: 3.390491311
B92: 110 | D92: 1.289295166 | E92: 1.658824187 | F92: 1.981765282 | H92: 2.360726342 | J92: 2.621264543 | L92: 3.381179076
B94: 120 | D94: 1.288646234 | E94: 1.657650899 | F94: 1.979930405 | H94: 2.357824613 | J94: 2.617421145 | L94: 3.373453769
B95: 130 | D95: 1.288097654 | E95: 1.656659413 | F95: 1.978380405 | H95: 2.355374585 | J95: 2.614177238 | L95: 3.366941627
B96: 140 | D96: 1.287627821 | E96: 1.655810511 | F96: 1.97705372 | H96: 2.353278406 | J96: 2.611402711 | L96: 3.36137771
B97: 150 | D97: 1.287220914 | E97: 1.6550755 | F97: 1.975905331 | H97: 2.351464582 | J97: 2.609002566 | L97: 3.356568982
B98: ∞ | D98: 1.282 | E98: 1.645 | F98: 1.96 | H98: 2.326 | J98: 2.576 | L98: 3.291
E101: =4.22*4.22 -> 17.8084
E102: =1334+E101 -> 1351.8084
E103: =E101/E102 -> 0.01317376042
